bitfinex/quotes_ETHUSD_20250611
["timestamp","ask_amount","ask_price","bid_price","bid_amount"]
[1749615457396,9.53368451,2784.0,2783.9,0.948]
[1749615458801,9.53368451,2784.1,2783.9,0.948]
[1749615460618,0.04,2783.9,2783.8,0.35991607]
[1749615460755,0.04,2783.9,2783.7,3.658]
[1749615461266,9.53368451,2783.8,2783.7,0.36253429]
[1749615461611,11.44865296,2783.8,2782.4,40.0]
[1749615461791,11.44865296,2783.8,2782.5,3.67]
[1749615461792,9.53368451,2783.4,2782.5,3.67]
[1749615462090,9.53368451,2783.4,2782.7,30.0]
[1749615462288,9.53368451,2783.4,2782.7,22.012]
[1749615462503,9.53368451,2783.4,2782.9,6.914]
[1749615462711,9.53368451,2783.4,2783.0,3.669]
[1749615462872,9.53368451,2783.4,2782.2,10.0]
[1749615463203,9.53368451,2783.4,2782.4,30.0]
[1749615463755,9.53368451,2783.4,2782.6,40.0]
[1749615463960,9.53368451,2783.4,2782.6,30.0]
[1749615464660,9.53368451,2783.4,2782.5,30.0]
[1749615464860,9.53368451,2783.4,2782.7,40.0]
[1749615465098,9.53368451,2783.4,2782.8,10.245]
[1749615465299,9.53368451,2783.4,2783.3,0.18]
[1749615465514,9.53368451,2783.4,2783.3,3.847]
[1749615466374,9.53368451,2783.4,2783.3,4.794]
[1749615467703,9.53368451,2783.4,2783.3,4.793]
[1749615471009,9.53368451,2783.4,2783.3,14.09]
[1749615471327,9.53368451,2783.4,2783.3,9.477]
[1749615471672,9.53368451,2783.4,2783.3,14.088]
[1749615472435,9.53368451,2783.7,2783.3,14.088]
[1749615472588,0.9576,2783.8,2783.3,14.088]
[1749615472784,0.9576,2783.8,2783.6,0.18]
[1749615473485,0.9576,2783.8,2783.6,0.5322554]
[1749615473696,9.57368451,2783.9,2783.6,0.18]
[1749615474101,9.57368451,2783.9,2783.8,0.18]
[1749615474327,10.67825296,2783.9,2783.8,0.18]
[1749615476208,9.57368451,2783.9,2783.8,0.18]
[1749615477265,0.04,2783.9,2783.8,0.18]
[1749615477665,0.04,2783.9,2783.8,3.841]
[1749615479226,0.04,2783.9,2783.8,11.176]
[1749615480232,0.04,2783.9,2783.8,3.841]
[1749615480747,0.04,2783.9,2783.8,4.79]
[1749615480912,0.04,2783.9,2783.8,4.74]
[1749615482814,0.04,2783.9,2783.8,0.13]
[1749615483159,0.04,2783.9,2783.8,4.741]
[1749615486148,0.04,2783.9,2783.8,4.739]
[1749615486352,0.04,2783.9,2783.8,1.13]
[1749615486543,0.04,2783.9,2783.8,0.18]
[1749615487053,0.04,2783.9,2783.8,1.13]
[1749615487436,0.04,2783.9,2783.8,4.789]
[1749615488530,0.04,2783.9,2783.8,0.18]
[1749615488731,0.04,2783.9,2783.8,4.788]
[1749615489257,6.27687536,2783.9,2783.8,4.788]
[1749615490255,6.27687536,2783.9,2783.8,1.13]
[1749615490442,6.27687536,2783.9,2783.8,4.788]
[1749615491257,6.27687536,2783.9,2783.8,0.18]
[1749615491458,6.27687536,2783.9,2783.8,1.13]
[1749615491459,7.8604629,2783.9,2783.8,1.13]
[1749615491625,7.8604629,2783.9,2783.8,0.18]
[1749615491959,7.8604629,2783.9,2783.8,1.13]
[1749615499460,1.62358754,2783.9,2783.8,1.13]
[1749615499649,7.23277536,2783.9,2783.8,1.13]
[1749615502463,7.23277536,2783.9,2783.8,10.426]
[1749615502975,0.9959,2783.9,2783.8,10.426]
[1749615503184,7.23277536,2783.9,2783.8,10.426]
[1749615505062,6.27687536,2783.9,2783.8,10.426]
[1749615505859,6.23687536,2784.4,2783.8,10.426]
[1749615506055,6.23687536,2784.4,2784.3,0.1792]
[1749615506258,0.9214,2784.7,2784.3,0.1792]
[1749615506472,6.23687536,2784.7,2784.4,4.14429864]
[1749615506819,6.23687536,2784.7,2784.6,0.1792]
[1749615506967,6.23687536,2784.7,2784.6,1.1292]
[1749615507173,6.27687536,2784.9,2784.6,1.1292]
[1749615507564,6.27687536,2784.9,2784.8,0.1792]
[1749615508491,0.04,2784.9,2784.8,0.1792]
[1749615508660,0.04,2784.9,2784.8,4.7872]
[1749615509803,2.46593057,2784.9,2784.8,1.1292]
[1749615512572,2.46593057,2784.9,2784.8,0.1792]
[1749615512784,2.46593057,2784.9,2784.8,1.1292]
[1749615513276,24.38741757,2784.9,2784.8,1.1292]
[1749615514095,24.38741757,2784.9,2784.8,1.1272]
[1749615514471,24.38741757,2784.9,2784.8,0.1792]
[1749615514675,23.83741757,2784.9,2784.8,1.1272]
[1749615514879,21.961487,2784.9,2784.8,1.1272]
[1749615515705,21.961487,2784.9,2784.8,4.7842]
[1749615516599,21.961487,2784.9,2784.8,1.1272]
[1749615517710,21.961487,2784.9,2784.8,4.7842]
[1749615518690,21.727151,2784.9,2784.8,4.7842]
[1749615521202,18.81973101,2784.9,2784.8,4.7842]
[1749615521856,17.30913101,2784.9,2784.8,4.7842]
[1749615522019,16.95061474,2784.9,2784.8,4.7842]
[1749615523825,15.15789605,2784.9,2784.8,4.7842]
[1749615524194,13.03481936,2784.9,2784.8,4.7842]
[1749615526043,12.58481936,2784.9,2784.8,4.7842]
[1749615526329,9.55930573,2785.9,2784.9,30.0]
[1749615526537,0.9282,2786.0,2785.0,30.0]
[1749615526734,0.9282,2786.0,2785.8,0.1792]
[1749615526935,0.9282,2786.0,2785.9,10.24]
[1749615527410,0.9282,2786.0,2785.9,9.293]
[1749615527411,1.76368792,2786.0,2785.9,9.293]
[1749615527606,1.76368792,2786.0,2785.9,10.24]
[1749615527607,2.31368792,2786.0,2785.9,10.24]
[1749615527795,1.38548792,2786.0,2785.9,0.947]
[1749615527999,2.28298792,2786.0,2785.9,0.947]
[1749615529732,1.73298792,2786.0,2785.8,0.1792]
[1749615529926,9.51930573,2785.9,2785.8,0.1792]
[1749615531418,6.22949606,2785.9,2785.8,0.1792]
[1749615535239,6.22949606,2785.9,2785.8,10.4172]
[1749615535920,6.77949606,2785.9,2785.8,10.4172]
[1749615536644,6.77949606,2785.9,2785.8,9.4702]
[1749615536887,7.54719567,2785.9,2785.8,10.4172]
[1749615537541,0.55,2785.6,2784.2,0.76084882]
[1749615537753,6.22949606,2784.4,2784.3,13.893]
[1749615538103,6.22949606,2784.4,2784.3,14.0722]
[1749615539197,9.52168706,2784.7,2784.3,14.0722]
[1749615539602,9.52168706,2784.7,2784.6,0.1792]
[1749615540533,0.9251,2785.0,2784.6,0.1792]
[1749615540534,9.52168706,2785.0,2784.6,0.1792]
[1749615540736,0.8887,2785.7,2784.7,30.0]
[1749615540910,9.52168706,2785.6,2784.9,10.1792]
[1749615541112,9.52168706,2785.6,2785.5,0.1792]
[1749615541319,9.52168706,2785.6,2785.5,1.1262]
[1749615541535,9.52168706,2785.6,2785.5,1.49300837]
[1749615546415,9.52168706,2785.8,2785.5,1.49300837]
[1749615546933,9.52168706,2785.8,2785.7,0.1792]
[1749615549964,9.52168706,2785.8,2785.7,9.4702]
[1749615552364,9.52168706,2785.8,2785.7,9.47019835]
[1749615553489,9.52168706,2786.1,2785.7,9.47019835]
[1749615553626,9.52168706,2786.1,2785.8,3.655]
[1749615553981,10.47968706,2786.4,2786.0,0.1792]
[1749615554328,10.47968706,2786.4,2785.8,3.655]
[1749615554528,10.47968706,2786.4,2786.3,0.1792]
[1749615554771,10.47968706,2786.4,2786.3,1.1262]
[1749615555072,0.55,2786.6,2786.3,1.1262]
[1749615555073,9.52168706,2786.6,2786.3,1.1262]
[1749615555437,9.52168706,2786.6,2786.5,0.1792]
[1749615556366,4.7,2786.8,2786.5,0.1792]
[1749615556837,4.7,2786.8,2786.7,0.1792]
[1749615557036,9.56168706,2786.9,2786.7,0.1792]
[1749615557941,9.56168706,2786.9,2786.8,0.947]
[1749615559248,6.26567504,2786.9,2786.8,0.947]
[1749615559654,6.26567504,2786.9,2786.8,1.1262]
[1749615559852,6.26567504,2786.9,2786.8,0.1792]
[1749615560052,6.26567504,2786.9,2786.8,1.1262]
[1749615562790,6.26567504,2786.9,2786.8,0.1792]
[1749615563764,7.53196254,2786.9,2786.8,0.1792]
[1749615565061,7.53196254,2786.9,2786.8,10.4142]
[1749615568392,7.53196254,2786.9,2786.8,10.77627866]
[1749615568892,7.53196254,2786.9,2786.8,10.4142]
[1749615571394,8.44526254,2786.9,2786.8,10.4142]
[1749615573126,8.44526254,2786.9,2786.8,10.4132]
[1749615573421,8.44526254,2786.9,2786.8,0.1792]
[1749615573786,1.3062875,2786.9,2786.8,0.1792]
[1749615573984,6.81567504,2786.9,2786.8,0.1792]
[1749615574228,6.26567504,2786.9,2786.8,0.1792]
[1749615575109,6.26567504,2786.9,2786.8,10.4132]
[1749615576145,0.04,2786.9,2786.8,14.0672]
[1749615581945,0.04,2786.9,2786.8,1.1262]
[1749615583130,0.04,2786.9,2786.8,4.7802]
[1749615583630,0.04,2786.9,2786.8,34.7802]
[1749615585134,0.04,2786.9,2786.8,44.0662]
[1749615591533,0.9271,2787.9,2786.8,44.0662]
[1749615591697,0.9271,2787.9,2786.9,30.0]
[1749615591900,6.22567504,2787.8,2787.1,40.0]
[1749615592133,6.22567504,2787.8,2787.3,10.0]
[1749615592435,6.22567504,2787.8,2787.7,0.1792]
[1749615592731,6.22567504,2787.8,2787.7,4.7792]
[1749615596148,6.22567504,2787.8,2787.7,0.1792]
[1749615596323,6.22567504,2787.8,2787.7,4.7782]
[1749615597530,0.04,2787.9,2787.7,4.7782]
[1749615597941,6.26567504,2787.9,2787.7,4.7782]
[1749615598143,0.04,2787.9,2787.7,4.7782]
[1749615598547,0.04,2787.9,2787.8,30.0]
[1749615603036,0.04,2787.9,2787.8,39.283]
[1749615604626,0.04,2787.9,2787.8,35.986]
[1749615605561,0.04,2787.9,2787.8,31.738]
[1749615608139,0.8939,2788.8,2787.9,30.0]
[1749615608343,6.22567504,2788.5,2788.0,3.652]
[1749615608842,6.22567504,2788.5,2788.4,0.1792]
[1749615609041,6.22567504,2788.5,2788.4,3.8312]
[1749615609879,0.04,2788.9,2788.4,3.8312]
[1749615610164,6.22567504,2788.6,2788.5,0.946]
[1749615610328,6.22567504,2788.6,2788.5,1.1252]
[1749615613344,6.22567504,2788.6,2788.5,1.48329949]
[1749615614473,7.20057504,2788.6,2788.5,0.53729949]
[1749615614633,14.14630758,2788.6,2788.5,0.53729949]
[1749615614835,7.92063254,2788.6,2788.5,1.48329949]
[1749615615148,7.20057504,2788.6,2788.5,1.48329949]
[1749615619245,6.22567504,2788.6,2788.5,1.48329949]
[1749615621581,0.04,2788.9,2788.5,1.48329949]
[1749615621784,6.22567504,2788.8,2788.5,1.48329949]
[1749615621943,6.22567504,2788.8,2788.5,1.30409949]
[1749615622150,6.22567504,2788.8,2788.7,0.1792]
[1749615626583,6.22567504,2788.8,2788.7,9.4592]
[1749615631906,6.22567504,2788.8,2788.7,13.1092]
[1749615633987,6.22567504,2788.8,2788.7,1.1252]
[1749615635100,6.22567504,2788.8,2788.7,10.4042]
[1749615635304,6.22567504,2788.8,2788.7,14.0542]
[1749615652517,6.22567504,2788.8,2788.7,22.592464]
[1749615652822,6.22567504,2788.8,2788.7,21.066002]
[1749615653323,6.22567504,2788.8,2788.7,19.243002]
[1749615659234,4.52065164,2788.8,2788.7,19.243002]
[1749615660116,4.52065164,2788.8,2788.7,1.1252]
[1749615660427,4.52065164,2788.8,2788.7,10.592645]
[1749615660935,4.52065164,2788.8,2788.7,10.95936]
[1749615661142,4.52065164,2788.8,2788.7,4.410079]
[1749615661339,4.52065164,2788.8,2788.7,8.059079]
[1749615663103,0.04,2788.9,2788.7,8.059079]
[1749615663303,0.8624,2789.5,2788.8,30.0]
[1749615663626,4.52065164,2789.1,2789.0,9.095475]
[1749615663938,4.52065164,2789.1,2789.0,12.744475]
[1749615664102,4.52065164,2789.1,2789.0,12.923675]
[1749615665133,4.52065164,2789.1,2789.0,22.202675]
[1749615665335,6.21375078,2789.1,2789.0,22.202675]
[1749615666851,0.8624,2789.5,2789.0,22.202675]
[1749615667018,6.21375078,2789.3,2789.1,16.417311]
[1749615667217,6.21375078,2789.3,2789.2,3.649]
[1749615667423,6.21375078,2789.3,2789.2,3.8282]
[1749615668509,0.8624,2789.5,2789.2,3.8282]
[1749615668709,6.21375078,2789.3,2789.2,3.8282]
[1749615668943,6.21375078,2789.3,2789.2,3.649]
[1749615669151,6.21375078,2789.3,2789.2,3.8282]
[1749615669522,0.70761508,2789.4,2789.2,0.1792]
[1749615669708,6.21375078,2789.3,2789.2,4.7732]
[1749615672851,6.21375078,2789.3,2789.2,1.1242]
[1749615673051,6.21375078,2789.3,2789.2,4.7732]
[1749615674352,0.70761508,2789.4,2789.2,4.7732]
[1749615674547,6.21375078,2789.3,2789.2,4.7732]
[1749615674856,6.21375078,2789.3,2789.2,4.594]
[1749615675052,6.21375078,2789.3,2789.2,4.7732]
[1749615675550,6.21375078,2789.3,2789.2,4.7722]
[1749615679426,0.8624,2789.5,2789.2,4.7722]
[1749615679629,6.21375078,2789.3,2789.2,4.593]
[1749615679828,6.21375078,2789.3,2789.2,13.871]
[1749615680030,6.21375078,2789.3,2789.2,14.0502]
[1749615683375,6.92136586,2789.3,2789.2,14.0502]
[1749615684363,6.21375078,2789.3,2789.2,14.0502]
[1749615685270,4.51887884,2789.3,2789.2,14.0502]
[1749615686965,4.51887884,2789.3,2789.2,9.4572]
[1749615687162,4.51887884,2789.3,2789.2,14.0502]
[1749615689256,4.51887884,2789.3,2789.2,9.4572]
[1749615689456,10.99318556,2789.3,2789.2,10.4022]
[1749615690766,10.99318556,2789.3,2789.2,9.4572]
[1749615690979,10.99318556,2789.3,2789.2,10.4022]
[1749615691281,8.17237255,2789.3,2789.2,10.4022]
[1749615697380,1.95542788,2789.3,2789.2,10.4022]
[1749615697585,6.21694467,2789.3,2789.2,10.4022]
[1749615697749,4.7,2789.5,2789.2,14.0502]
[1749615697750,10.91694467,2789.5,2789.2,14.0502]
[1749615698294,10.91694467,2789.5,2789.4,0.1792]
[1749615698476,6.21694467,2789.5,2789.4,3.8272]
[1749615699175,6.21694467,2789.5,2789.4,1.1232]
[1749615699384,6.93566914,2789.5,2789.4,1.1232]
[1749615701376,6.21694467,2789.5,2789.4,1.1232]
[1749615705188,6.21694467,2789.5,2789.4,10.4022]
[1749615709292,6.21694467,2789.5,2789.4,10.223]
[1749615709474,6.21694467,2789.5,2789.4,1.1232]
[1749615710996,6.21694467,2789.5,2789.4,0.1792]
[1749615711206,6.93566914,2789.5,2789.4,1.1232]
[1749615712802,0.71872447,2789.5,2789.4,1.1232]
[1749615715176,0.71872447,2789.5,2789.4,10.4012]
[1749615715382,13.40418934,2789.6,2789.4,10.4012]
[1749615716502,7.18724467,2789.6,2789.4,10.4012]
[1749615719207,7.73724467,2789.6,2789.5,0.944]
[1749615722205,6.76694467,2789.6,2789.5,0.944]
[1749615722410,6.21694467,2789.6,2789.5,0.944]
[1749615724080,6.21694467,2789.6,2789.5,10.222]
[1749615725614,6.93467914,2789.6,2789.5,10.222]
[1749615725798,13.70162381,2789.6,2789.5,10.222]
[1749615726112,13.70162381,2789.6,2789.5,9.278]
[1749615726313,13.70162381,2789.6,2789.5,10.222]
[1749615726314,14.62462381,2789.6,2789.5,10.222]
[1749615727986,8.40767914,2789.6,2789.5,10.222]
[1749615729127,14.62462381,2789.6,2789.5,10.222]
[1749615730392,8.40767914,2789.6,2789.5,10.222]
[1749615731031,7.48467914,2789.6,2789.5,10.222]
[1749615736096,13.70162381,2789.6,2789.5,10.222]
[1749615737301,13.70162381,2789.6,2788.9,0.51]
[1749615737302,1.4391,2789.5,2788.9,0.51]
[1749615737497,1.4391,2789.5,2789.0,0.943]
[1749615737498,0.55,2789.2,2789.0,0.943]
[1749615737725,0.55,2789.2,2789.1,0.943]
[1749615738723,6.76694467,2789.2,2789.1,0.943]
[1749615742728,11.46694467,2789.2,2788.6,0.51]
[1749615742927,6.76694467,2788.8,2788.7,0.943]
[1749615743834,6.21694467,2788.8,2788.7,0.943]
[1749615744219,6.21694467,2788.8,2788.7,6.954606]
[1749615744433,6.21694467,2788.8,2788.7,4.062388]
[1749615745136,6.76694467,2788.8,2788.7,10.222]
[1749615745706,6.76694467,2788.8,2788.7,9.279]
[1749615745912,6.76694467,2788.8,2788.7,10.222]
[1749615746709,7.53783914,2788.8,2788.7,10.222]
[1749615747337,4.7,2789.1,2788.7,10.222]
[1749615747642,6.21694467,2788.9,2788.7,10.222]
[1749615747833,4.7,2789.1,2788.7,10.222]
[1749615748027,6.21694467,2789.0,2788.7,10.222]
[1749615748552,6.21694467,2789.0,2788.9,10.0]
[1749615748723,6.21694467,2789.0,2788.9,5.801577]
[1749615748928,6.21694467,2789.0,2788.9,4.135843]
[1749615749426,6.21694467,2789.0,2788.7,10.222]
[1749615750518,6.21694467,2788.8,2788.7,9.279]
[1749615750823,6.21694467,2788.8,2788.7,13.867]
[1749615752230,6.21694467,2788.8,2788.7,9.279]
[1749615752428,6.21694467,2788.8,2788.7,10.222]
[1749615755326,6.21694467,2788.8,2788.7,10.55676713]
[1749615755560,6.21694467,2788.8,2788.7,10.222]
[1749615756263,6.21694467,2788.8,2788.7,10.55677039]
[1749615757181,6.21694467,2788.8,2788.7,10.55676107]
[1749615757468,6.21694467,2788.8,2788.7,10.222]
[1749615757663,6.21694467,2788.8,2788.7,10.55676072]
[1749615757842,6.21694467,2788.8,2788.7,10.55676239]
[1749615758346,6.21694467,2788.8,2788.7,10.5567717]
[1749615758744,6.21694467,2788.8,2788.7,13.867]
[1749615759067,6.21694467,2788.8,2788.7,14.20176559]
[1749615759267,6.21694467,2788.8,2788.7,14.20175737]
[1749615759570,6.21694467,2788.8,2788.7,14.2017574]
[1749615759774,6.21694467,2788.8,2788.7,14.20177175]
[1749615760435,0.55,2789.0,2788.8,24.483443]
[1749615760771,6.76694467,2789.0,2788.7,13.867]
[1749615761138,6.76694467,2789.0,2788.8,11.919832]
[1749615761446,6.76694467,2789.0,2788.7,13.867]
[1749615761648,6.76694467,2789.0,2788.9,10.0]
[1749615761862,6.76694467,2789.0,2788.9,0.33484382]
[1749615762039,6.76694467,2789.0,2788.7,13.867]
[1749615762370,6.76694467,2789.0,2788.9,10.0]
[1749615762577,6.76694467,2789.0,2788.9,0.33487012]
[1749615763071,6.76694467,2789.0,2788.8,13.929832]
[1749615763568,6.76694467,2789.0,2788.9,0.33496714]
[1749615763874,6.76694467,2789.0,2788.9,0.33496703]
[1749615764237,6.76694467,2789.0,2788.7,13.867]
[1749615764449,6.76694467,2789.0,2788.9,10.0]
[1749615764682,6.76694467,2789.0,2788.9,0.33498379]
[1749615764874,6.76694467,2789.0,2788.9,0.33498475]
[1749615765179,6.76694467,2789.0,2788.9,0.943]
[1749615765479,6.76694467,2789.0,2788.9,1.27808937]
[1749615765841,6.76694467,2789.0,2788.9,0.943]
[1749615766057,6.76694467,2789.0,2788.9,1.27811136]
[1749615766252,6.76694467,2789.0,2788.9,0.943]
[1749615766453,7.53258914,2789.0,2788.7,9.279]
[1749615766687,6.21694467,2788.8,2788.7,9.279]
[1749615766998,6.21694467,2788.8,2788.7,14.20233274]
[1749615767188,6.21694467,2788.8,2788.7,13.867]
[1749615767491,6.21694467,2788.8,2788.7,14.20232298]
[1749615767885,6.21694467,2788.8,2788.7,14.20233221]
[1749615768065,6.21694467,2788.8,2788.7,13.867]
[1749615768272,6.21694467,2788.8,2788.7,14.20233206]
[1749615768472,6.21694467,2788.8,2788.7,0.943]
[1749615768672,7.08520358,2788.8,2788.7,0.943]
[1749615768871,7.08520358,2788.8,2788.7,1.27835377]
[1749615769401,7.63520358,2788.8,2788.7,0.33535377]
[1749615769713,7.63520358,2788.8,2788.7,0.943]
[1749615769874,7.63520358,2788.8,2788.7,1.27835537]
[1749615770076,7.63520358,2788.8,2788.7,0.943]
[1749615770584,7.63520358,2788.8,2788.7,1.27837659]
[1749615771259,7.63520358,2788.8,2788.7,0.943]
[1749615772263,7.63520358,2788.8,2788.4,0.35998166]
[1749615772403,7.63520358,2788.8,2788.5,4.92337604]
[1749615772608,7.63520358,2788.8,2788.6,0.33537604]
[1749615772806,7.63520358,2788.8,2788.7,0.33537604]
[1749615773115,7.63520358,2788.8,2788.5,4.588]
[1749615773419,7.63520358,2788.8,2788.6,0.33537122]
[1749615773618,7.63520358,2788.8,2788.5,4.588]
[1749615773817,6.21694467,2788.6,2788.5,4.588]
[1749615774010,6.21694467,2788.6,2788.5,12.94199]
[1749615774317,6.21694467,2788.6,2788.5,13.27736516]
[1749615775215,6.21694467,2788.6,2788.5,17.923181]
[1749615775931,6.21694467,2788.6,2788.5,18.25854396]
[1749615776830,6.21694467,2788.6,2788.5,18.25855348]
[1749615777131,6.39614467,2788.9,2788.6,28.046729]
[1749615777419,4.7,2789.1,2788.8,0.1792]
[1749615777582,4.47762439,2789.1,2789.0,30.0]
[1749615777987,4.47762439,2789.1,2789.0,30.3353712]
[1749615778190,6.21694467,2789.5,2789.0,30.0]
[1749615778408,6.21694467,2789.5,2789.1,0.33512627]
[1749615778610,6.21694467,2789.5,2789.2,3.644]
[1749615778811,0.1792,2789.6,2789.3,0.943]
[1749615779314,6.21694467,2789.7,2789.3,1.1222]
[1749615781689,6.21694467,2789.7,2789.4,0.33470911]
[1749615781890,6.21694467,2789.7,2789.3,1.1222]
[1749615782229,6.21694467,2789.7,2789.4,0.33471205]
[1749615782521,6.21694467,2789.7,2789.5,9.61371205]
[1749615782710,6.21694467,2789.7,2789.6,0.33471205]
[1749615783793,6.21694467,2789.7,2789.6,0.33445433]
[1749615784010,6.21694467,2789.7,2789.6,0.3344543]
[1749615784416,6.21694467,2789.7,2789.6,0.33445111]
[1749615784617,6.21694467,2789.7,2789.6,0.33441108]
[1749615784816,6.21694467,2789.7,2789.6,0.3344113]
[1749615785840,6.21694467,2789.7,2789.6,0.3342728]
[1749615786004,6.21694467,2789.7,2789.5,9.279]
[1749615786324,6.21694467,2789.7,2789.6,0.33426952]
[1749615786528,6.21694467,2789.7,2789.5,9.279]
[1749615786720,6.21694467,2789.7,2789.6,0.33424108]
[1749615786917,6.21694467,2789.7,2789.6,0.33424126]
[1749615787122,6.21694467,2789.7,2789.6,0.33413935]
[1749615787435,6.21694467,2789.7,2789.6,0.33413787]
[1749615787612,6.21694467,2789.7,2789.6,0.33413846]
[1749615787807,6.21694467,2789.7,2789.5,12.922]
[1749615788029,6.21694467,2789.6,2789.5,12.922]
[1749615788531,6.21694467,2789.6,2789.5,13.25611093]
[1749615789333,0.1792,2789.8,2789.5,12.922]
[1749615789795,0.1792,2789.8,2789.6,0.33409951]
[1749615789999,0.1792,2789.8,2789.5,12.922]
[1749615790000,0.1792,2789.8,2789.7,0.33409895]
[1749615790210,0.04,2789.9,2789.7,11.6084772]
[1749615790418,6.25694467,2789.9,2789.8,9.7367862]
[1749615790614,6.25694467,2789.9,2789.8,0.942]
[1749615790823,6.25694467,2789.9,2789.8,8.364218]
[1749615791222,6.25694467,2789.9,2789.8,6.350245]
[1749615791703,6.25694467,2789.9,2789.8,9.993245]
[1749615792111,6.25694467,2789.9,2789.8,6.585]
[1749615792630,6.25694467,2789.9,2789.8,4.585]
[1749615792834,6.25694467,2789.9,2789.8,4.94293414]
[1749615793014,6.25694467,2789.9,2789.8,6.97484614]
[1749615794433,6.25694467,2789.9,2789.6,2.10529]
[1749615794605,0.04,2789.9,2789.8,3.02719]
[1749615794800,6.25694467,2789.9,2789.8,3.02719]
[1749615795134,6.25694467,2789.9,2789.8,12.30419]
[1749615796245,6.25694467,2789.9,2789.8,12.66805152]
[1749615799229,0.04,2789.9,2789.8,12.66805152]
[1749615799434,0.04,2789.9,2789.8,12.84725152]
[1749615801040,0.04,2789.9,2789.8,16.48925152]
[1749615801452,4.47762439,2791.0,2789.8,17.38494645]
[1749615801612,6.39534467,2790.8,2789.9,30.0]
[1749615801942,6.39534467,2790.8,2789.8,15.29975645]
[1749615801943,6.39534467,2790.8,2790.1,21.807406]
[1749615802143,6.21694467,2790.6,2790.3,23.397877]
[1749615802314,6.21694467,2790.6,2789.9,30.0]
[1749615802516,6.21694467,2790.6,2790.4,0.1784]
[1749615802761,6.21694467,2790.6,2790.5,11.116194]
[1749615803874,6.21694467,2790.6,2790.5,7.474194]
[1749615804053,6.21694467,2790.6,2790.5,10.393194]
[1749615804375,6.21694467,2790.6,2790.5,8.521126]
[1749615804974,6.21694467,2790.6,2790.5,3.937126]
[1749615805147,6.21694467,2790.6,2790.5,6.76975]
[1749615805951,0.2184,2790.9,2790.6,8.409563]
[1749615806143,6.21694467,2790.8,2790.7,3.642]
[1749615806839,0.2184,2790.9,2790.7,3.642]
[1749615807039,6.43534467,2790.9,2790.7,3.642]
[1749615807440,0.2184,2790.9,2790.7,3.642]
[1749615807673,6.21694467,2790.8,2790.7,3.642]
[1749615807975,6.21694467,2790.8,2790.7,7.151702]
[1749615808178,6.21694467,2790.8,2790.7,3.642]
[1749615808337,0.04,2790.9,2790.7,3.642]
[1749615808536,6.21694467,2790.8,2790.7,3.642]
[1749615810153,0.04,2790.9,2790.7,3.625063]
[1749615810357,6.21694467,2790.8,2790.7,7.266063]
[1749615811471,0.2184,2790.9,2790.7,7.266063]
[1749615811653,6.21694467,2790.8,2790.7,10.97258]
[1749615812044,6.21694467,2790.8,2790.7,4.582]
[1749615812450,6.21694467,2790.8,2790.7,11.641159]
[1749615812885,6.21694467,2790.8,2790.7,4.582]
[1749615813184,6.21694467,2790.8,2790.7,31.052146]
[1749615813383,6.21694467,2790.8,2790.7,17.42641]
[1749615813678,6.21694467,2790.8,2790.7,9.711658]
[1749615814059,0.04,2790.9,2790.8,8.682099]
[1749615814268,0.04,2790.9,2790.8,8.860499]
[1749615818817,0.04,2790.9,2790.8,13.441499]
[1749615819880,0.04,2790.9,2790.8,8.860499]
[1749615820067,0.04,2790.9,2790.8,13.441499]
[1749615821900,6.25694467,2790.9,2790.8,6.947457]
[1749615826670,6.25694467,2790.9,2790.8,0.941]
[1749615827022,6.25694467,2790.9,2790.8,8.404793]
[1749615827688,6.25694467,2790.9,2790.8,1.1194]
[1749615827876,6.25694467,2790.9,2790.8,10.474221]
[1749615829087,6.25694467,2790.9,2790.8,9.971221]
[1749615829287,6.25694467,2790.9,2790.8,4.7594]
[1749615829484,6.25694467,2790.9,2790.8,20.326361]
[1749615830413,0.04,2790.9,2790.8,20.326361]
[1749615830577,6.25694467,2790.9,2790.8,20.326361]
[1749615830979,6.25694467,2790.9,2790.8,19.876646]
[1749615831303,6.25694467,2790.9,2790.8,10.160272]
[1749615832723,6.25694467,2790.9,2790.8,19.432272]
[1749615834619,6.25694467,2790.9,2790.8,14.851272]
[1749615834823,6.25694467,2790.9,2790.8,19.432272]
[1749615835423,0.04,2790.9,2790.8,19.432272]
[1749615843053,6.25694467,2790.9,2790.8,19.432272]
[1749615843847,0.04,2790.9,2790.8,19.432272]
[1749615846028,0.04,2790.9,2790.8,1.1194]
[1749615846230,0.04,2790.9,2790.8,31.1194]
[1749615846639,0.04,2790.9,2790.8,23.287094]
[1749615847148,0.04,2790.9,2790.8,26.927094]
[1749615847326,0.04,2790.9,2790.8,26.488181]
[1749615848253,0.04,2790.9,2790.8,25.38763]
[1749615849366,0.04,2790.9,2790.8,19.609957]
[1749615851157,6.39534467,2791.7,2790.9,25.251802]
[1749615851357,6.39534467,2791.7,2791.1,27.102892]
[1749615851555,6.21694467,2791.5,2791.3,21.94527]
[1749615851852,6.21694467,2791.5,2791.4,15.38427]
[1749615852843,6.21694467,2791.5,2791.4,14.933624]
[1749615853462,6.21694467,2791.5,2791.4,15.873624]
[1749615853667,6.39534467,2791.7,2791.4,4.579]
[1749615854960,6.21694467,2791.7,2791.4,4.579]
[1749615855156,6.25694467,2791.9,2791.5,9.4504]
[1749615855363,6.25694467,2791.9,2791.6,3.639]
[1749615855561,6.25694467,2791.9,2791.6,4.00515858]
[1749615856171,6.25694467,2791.9,2791.7,9.797685]
[1749615856379,6.25694467,2791.9,2791.6,4.00515858]
[1749615856380,0.04,2791.9,2791.8,14.700844]
[1749615856793,0.04,2791.9,2791.8,14.879244]
[1749615857339,4.946,2793.6,2791.9,30.0]
[1749615857340,0.9452,2792.7,2791.9,30.0]
[1749615857565,7.16214467,2792.7,2792.5,0.1784]
[1749615857768,6.21694467,2792.7,2792.6,4.579]